[Event "Titled Tuesday Blitz October 31 Late 2023"]
[White "Zhigalko, Sergei"]
[Black "Cervantes Landeiro, Thalia"]
[WhiteFideId "13502956"]
[BlackFideId "3520498"]
[WhiteElo "2917"]
[BlackElo "2484"]
[Result "0-1"]
[Round "1"]
[TimeControl "180+1"]
[Date "2023.10.31"]
[WhiteClock "0:00:00"]
[BlackClock "0:00:07"]
[Board "23"]

1. e4 {[%clk 0:02:59]}  c5 {[%clk 0:02:58]} 2. Nf3 {[%clk 0:02:59]}  d6 {[%clk 0:02:58]} 3. d4 {[%clk 0:03:00]}  cxd4 {[%clk 0:02:59]} 4. Qxd4 {[%clk 0:03:00]}  Nc6 {[%clk 0:02:59]} 5. Bb5 {[%clk 0:03:00]}  Bd7 {[%clk 0:02:57]} 6. Bxc6 {[%clk 0:03:01]}  Bxc6 {[%clk 0:02:58]} 7. Nc3 {[%clk 0:03:01]}  Nf6 {[%clk 0:02:58]} 8. Bg5 {[%clk 0:03:01]}  e5 {[%clk 0:02:55]} 9. Qd3 {[%clk 0:03:01]}  Be7 {[%clk 0:02:55]} 10. O-O-O {[%clk 0:03:00]}  Ng4 {[%clk 0:02:29]} 11. Bxe7 {[%clk 0:02:43]}  Qxe7 {[%clk 0:02:30]} 12. Rhf1 {[%clk 0:02:39]}  Rd8 {[%clk 0:02:28]} 13. h3 {[%clk 0:02:12]}  Nf6 {[%clk 0:02:28]} 14. Nh2 {[%clk 0:01:51]}  O-O {[%clk 0:02:27]} 15. Qe3 {[%clk 0:01:46]}  d5 {[%clk 0:02:24]} 16. exd5 {[%clk 0:01:43]}  Nxd5 {[%clk 0:02:24]} 17. Nxd5 {[%clk 0:01:41]}  Bxd5 {[%clk 0:02:20]} 18. Ng4 {[%clk 0:01:32]}  Bxa2 {[%clk 0:02:08]} 19. Qxe5 {[%clk 0:01:23]}  Be6 {[%clk 0:02:07]} 20. Ne3 {[%clk 0:01:20]}  Rc8 {[%clk 0:02:00]} 21. Rd4 {[%clk 0:01:11]}  Rc5 {[%clk 0:01:55]} 22. Qd6 {[%clk 0:01:10]}  Qxd6 {[%clk 0:01:47]} 23. Rxd6 {[%clk 0:00:51]}  Rfc8 {[%clk 0:01:48]} 24. Rfd1 {[%clk 0:00:50]}  h5 {[%clk 0:01:44]} 25. Rd8+ {[%clk 0:00:46]}  Kh7 {[%clk 0:01:38]} 26. b4 {[%clk 0:00:42]}  Rxd8 {[%clk 0:01:31]} 27. Rxd8 {[%clk 0:00:43]}  Rc7 {[%clk 0:01:31]} 28. Kd2 {[%clk 0:00:41]}  a6 {[%clk 0:01:30]} 29. Kd3 {[%clk 0:00:36]}  b5 {[%clk 0:00:59]} 30. Rd6 {[%clk 0:00:30]}  Ra7 {[%clk 0:00:59]} 31. Rb6 {[%clk 0:00:29]}  Kg6 {[%clk 0:00:55]} 32. Ke4 {[%clk 0:00:25]}  Kf6 {[%clk 0:00:44]} 33. f4 {[%clk 0:00:22]}  Ke7 {[%clk 0:00:38]} 34. f5 {[%clk 0:00:21]}  Ba2 {[%clk 0:00:34]} 35. g4 {[%clk 0:00:18]}  hxg4 {[%clk 0:00:33]} 36. hxg4 {[%clk 0:00:19]}  Bb1 {[%clk 0:00:23]} 37. g5 {[%clk 0:00:11]}  Ba2 {[%clk 0:00:18]} 38. Ke5 {[%clk 0:00:10]}  Ke8 {[%clk 0:00:13]} 39. Kf4 {[%clk 0:00:03]}  Kd7 {[%clk 0:00:12]} 40. f6 {[%clk 0:00:02]}  gxf6 {[%clk 0:00:12]} 41. Rxf6 {[%clk 0:00:02]}  Be6 {[%clk 0:00:11]} 42. g6 {[%clk 0:00:00]}  Ke7 {[%clk 0:00:07]} 0-1


[Site "https://www.chess.com"]

[Event "Titled Tuesday Blitz October 31 Late 2023"]
[White "Dudzinski, Pawel"]
[Black "Talibov, Shiroghlan"]
[WhiteFideId "1117890"]
[BlackFideId "13429078"]
[WhiteElo "2484"]
[BlackElo "2914"]
[Result "1-0"]
[Round "1"]
[TimeControl "180+1"]
[Date "2023.10.31"]
[WhiteClock "0:02:41"]
[BlackClock "0:02:35"]
[Board "24"]

1. e4 {[%clk 0:03:00]}  c6 {[%clk 0:02:57]} 2. d4 {[%clk 0:03:00]}  d5 {[%clk 0:02:57]} 3. exd5 {[%clk 0:03:01]}  cxd5 {[%clk 0:02:58]} 4. Bd3 {[%clk 0:03:01]}  Nc6 {[%clk 0:02:55]} 5. c3 {[%clk 0:03:02]}  Qc7 {[%clk 0:02:56]} 6. Ne2 {[%clk 0:02:59]}  Bg4 {[%clk 0:02:53]} 7. f3 {[%clk 0:02:58]}  Bh5 {[%clk 0:02:54]} 8. Bf4 {[%clk 0:02:59]}  Qd7 {[%clk 0:02:49]} 9. O-O {[%clk 0:02:57]}  e6 {[%clk 0:02:49]} 10. Nd2 {[%clk 0:02:55]}  Bd6 {[%clk 0:02:45]} 11. Nb3 {[%clk 0:02:49]}  Nge7 {[%clk 0:02:41]} 12. Qd2 {[%clk 0:02:47]}  O-O {[%clk 0:02:41]} 13. Rfe1 {[%clk 0:02:41]}  Bg6 {[%clk 0:02:35]} 1-0


[Site "https://www.chess.com"]

[Event "Titled Tuesday Blitz October 31 Late 2023"]
[White "Ibarra Jerez, Jose Carlos"]
[Black "F-Ghaith2021"]
[WhiteFideId "2226332"]
[WhiteElo "2911"]
[BlackElo "2482"]
[Result "1-0"]
[Round "1"]
[TimeControl "180+1"]
[Date "2023.10.31"]
[WhiteClock "0:00:05"]
[BlackClock "0:00:20"]
[Board "25"]

1. e4 {[%clk 0:02:59]}  c6 {[%clk 0:02:51]} 2. Nf3 {[%clk 0:02:59]}  d5 {[%clk 0:02:51]} 3. d3 {[%clk 0:02:59]}  g6 {[%clk 0:02:50]} 4. Qe2 {[%clk 0:02:59]}  Bg7 {[%clk 0:02:50]} 5. g3 {[%clk 0:03:00]}  Na6 {[%clk 0:02:41]} 6. Bg2 {[%clk 0:02:58]}  Nc7 {[%clk 0:02:42]} 7. O-O {[%clk 0:02:58]}  e6 {[%clk 0:02:41]} 8. h4 {[%clk 0:02:55]}  h6 {[%clk 0:02:39]} 9. c3 {[%clk 0:02:53]}  Nf6 {[%clk 0:02:39]} 10. Bf4 {[%clk 0:02:50]}  O-O {[%clk 0:02:38]} 11. Nbd2 {[%clk 0:02:49]}  Nh5 {[%clk 0:02:33]} 12. Be3 {[%clk 0:02:45]}  Re8 {[%clk 0:02:13]} 13. e5 {[%clk 0:02:43]}  f5 {[%clk 0:01:57]} 14. exf6 {[%clk 0:02:41]}  Nxf6 {[%clk 0:01:56]} 15. Ne5 {[%clk 0:02:39]}  Kh7 {[%clk 0:01:55]} 16. d4 {[%clk 0:02:36]}  Nd7 {[%clk 0:01:54]} 17. f4 {[%clk 0:02:24]}  Nxe5 {[%clk 0:01:51]} 18. fxe5 {[%clk 0:02:24]}  Bd7 {[%clk 0:01:48]} 19. h5 {[%clk 0:02:19]}  g5 {[%clk 0:01:45]} 20. Rf7 {[%clk 0:02:14]}  Rf8 {[%clk 0:01:44]} 21. Raf1 {[%clk 0:02:13]}  Rxf7 {[%clk 0:01:36]} 22. Rxf7 {[%clk 0:02:11]}  Be8 {[%clk 0:01:36]} 23. Rf2 {[%clk 0:02:04]}  Qe7 {[%clk 0:01:35]} 24. g4 {[%clk 0:02:02]}  Bf7 {[%clk 0:01:32]} 25. Bf1 {[%clk 0:02:00]}  Rf8 {[%clk 0:01:31]} 26. Nf3 {[%clk 0:01:55]}  Bg8 {[%clk 0:01:30]} 27. Qd2 {[%clk 0:01:52]}  Kh8 {[%clk 0:01:25]} 28. Bd3 {[%clk 0:01:51]}  Bh7 {[%clk 0:01:25]} 29. Bxh7 {[%clk 0:01:43]}  Kxh7 {[%clk 0:01:26]} 30. Qc2+ {[%clk 0:01:44]}  Kh8 {[%clk 0:01:25]} 31. Kg2 {[%clk 0:01:44]}  Ne8 {[%clk 0:01:22]} 32. c4 {[%clk 0:01:40]}  Qb4 {[%clk 0:01:18]} 33. b3 {[%clk 0:01:36]}  dxc4 {[%clk 0:01:18]} 34. bxc4 {[%clk 0:01:36]}  c5 {[%clk 0:01:19]} 35. Bd2 {[%clk 0:01:31]}  Qb6 {[%clk 0:01:16]} 36. d5 {[%clk 0:01:30]}  exd5 {[%clk 0:01:15]} 37. cxd5 {[%clk 0:01:31]}  c4 {[%clk 0:01:15]} 38. Qe4 {[%clk 0:01:02]}  Qc5 {[%clk 0:01:06]} 39. Be3 {[%clk 0:01:00]}  Qc7 {[%clk 0:01:04]} 40. d6 {[%clk 0:01:00]}  Qd7 {[%clk 0:01:01]} 41. Qxc4 {[%clk 0:00:55]}  b5 {[%clk 0:01:00]} 42. Qe4 {[%clk 0:00:53]}  Qe6 {[%clk 0:00:58]} 43. Nd4 {[%clk 0:00:49]}  Rxf2+ {[%clk 0:00:58]} 44. Bxf2 {[%clk 0:00:49]}  Nxd6 {[%clk 0:00:58]} 45. Qa8+ {[%clk 0:00:20]}  Qe8 {[%clk 0:00:57]} 46. Qxe8+ {[%clk 0:00:18]}  Nxe8 {[%clk 0:00:58]} 47. Nxb5 {[%clk 0:00:18]}  a6 {[%clk 0:00:56]} 48. Nd6 {[%clk 0:00:18]}  Nc7 {[%clk 0:00:53]} 49. Kf3 {[%clk 0:00:13]}  Kg8 {[%clk 0:00:49]} 50. Ke4 {[%clk 0:00:13]}  Kf8 {[%clk 0:00:50]} 51. Nf5 {[%clk 0:00:12]}  Ne6 {[%clk 0:00:47]} 52. Bb6 {[%clk 0:00:12]}  Kf7 {[%clk 0:00:47]} 53. a4 {[%clk 0:00:09]}  Bf8 {[%clk 0:00:48]} 54. Be3 {[%clk 0:00:07]}  Nc7 {[%clk 0:00:46]} 55. Nd4 {[%clk 0:00:06]}  Bc5 {[%clk 0:00:44]} 56. Nf5 {[%clk 0:00:06]}  Bf8 {[%clk 0:00:42]} 57. Bd2 {[%clk 0:00:06]}  Ke6 {[%clk 0:00:42]} 58. Nd4+ {[%clk 0:00:06]}  Kf7 {[%clk 0:00:42]} 59. Kf5 {[%clk 0:00:07]}  Nd5 {[%clk 0:00:42]} 60. e6+ {[%clk 0:00:07]}  Ke8 {[%clk 0:00:43]} 61. Kg6 {[%clk 0:00:04]}  Ne7+ {[%clk 0:00:42]} 62. Kh7 {[%clk 0:00:04]}  Nd5 {[%clk 0:00:41]} 63. Nf5 {[%clk 0:00:04]}  Nc7 {[%clk 0:00:41]} 64. e7 {[%clk 0:00:04]}  Bxe7 {[%clk 0:00:41]} 65. Nxe7 {[%clk 0:00:04]}  Kxe7 {[%clk 0:00:42]} 66. Kxh6 {[%clk 0:00:05]}  Kf6 {[%clk 0:00:38]} 67. Bxg5+ {[%clk 0:00:04]}  Kf7 {[%clk 0:00:39]} 68. Be3 {[%clk 0:00:03]}  Nd5 {[%clk 0:00:39]} 69. Bd2 {[%clk 0:00:02]}  Nf6 {[%clk 0:00:39]} 70. Kg5 {[%clk 0:00:02]}  Ne4+ {[%clk 0:00:39]} 71. Kf5 {[%clk 0:00:02]}  Nxd2 {[%clk 0:00:40]} 72. Ke5 {[%clk 0:00:03]}  Nc4+ {[%clk 0:00:31]} 73. Kd4 {[%clk 0:00:03]}  Nb2 {[%clk 0:00:30]} 74. a5 {[%clk 0:00:03]}  Kf6 {[%clk 0:00:30]} 75. h6 {[%clk 0:00:03]}  Kg6 {[%clk 0:00:30]} 76. g5 {[%clk 0:00:04]}  Kf7 {[%clk 0:00:23]} 77. Kc5 {[%clk 0:00:04]}  Nd3+ {[%clk 0:00:23]} 78. Kb6 {[%clk 0:00:05]}  Nb4 {[%clk 0:00:23]} 79. Kc5 {[%clk 0:00:04]}  Nd3+ {[%clk 0:00:24]} 80. Kd4 {[%clk 0:00:04]}  Nb4 {[%clk 0:00:24]} 81. Kc4 {[%clk 0:00:04]}  Nc6 {[%clk 0:00:23]} 82. Kc5 {[%clk 0:00:03]}  Nxa5 {[%clk 0:00:23]} 83. Kb6 {[%clk 0:00:04]}  Nc4+ {[%clk 0:00:23]} 84. Kxa6 {[%clk 0:00:05]}  Ne5 {[%clk 0:00:22]} 85. h7 {[%clk 0:00:05]}  Nf3 {[%clk 0:00:23]} 86. h8=Q {[%clk 0:00:05]}  Kg6 {[%clk 0:00:20]} 87. Qf6+ {[%clk 0:00:05]} 1-0


[Site "https://www.chess.com"]

[Event "Titled Tuesday Blitz October 31 Late 2023"]
[White "Kravtsiv, Martyn"]
[Black "Molenda, Marcin"]
[WhiteFideId "14113147"]
[BlackFideId "1173065"]
[WhiteElo "2887"]
[BlackElo "2471"]
[Result "1-0"]
[Round "1"]
[TimeControl "180+1"]
[Date "2023.10.31"]
[WhiteClock "0:02:23"]
[BlackClock "0:02:20"]
[Board "31"]

1. e4 {[%clk 0:03:00]}  c5 {[%clk 0:02:57]} 2. Nf3 {[%clk 0:03:00]}  d6 {[%clk 0:02:56]} 3. Bb5+ {[%clk 0:02:59]}  Bd7 {[%clk 0:02:55]} 4. Bxd7+ {[%clk 0:02:59]}  Qxd7 {[%clk 0:02:56]} 5. c4 {[%clk 0:02:58]}  Nc6 {[%clk 0:02:56]} 6. Nc3 {[%clk 0:02:58]}  g6 {[%clk 0:02:56]} 7. d4 {[%clk 0:02:58]}  cxd4 {[%clk 0:02:56]} 8. Nxd4 {[%clk 0:02:58]}  Bg7 {[%clk 0:02:57]} 9. Be3 {[%clk 0:02:57]}  Nf6 {[%clk 0:02:57]} 10. f3 {[%clk 0:02:58]}  O-O {[%clk 0:02:50]} 11. O-O {[%clk 0:02:57]}  Rac8 {[%clk 0:02:50]} 12. b3 {[%clk 0:02:56]}  a6 {[%clk 0:02:45]} 13. Rc1 {[%clk 0:02:55]}  Nh5 {[%clk 0:02:41]} 14. Nd5 {[%clk 0:02:53]}  Qd8 {[%clk 0:02:41]} 15. Ne2 {[%clk 0:02:41]}  e6 {[%clk 0:02:40]} 16. Nb6 {[%clk 0:02:36]}  Rc7 {[%clk 0:02:39]} 17. Qd2 {[%clk 0:02:36]}  Qh4 {[%clk 0:02:20]} 18. Bg5 {[%clk 0:02:23]} 1-0


[Site "https://www.chess.com"]

[Event "Titled Tuesday Blitz October 31 Late 2023"]
[White "Seletsky, Grigory"]
[Black "Rustemov, Alexander"]
[WhiteFideId "14112191"]
[BlackFideId "4119002"]
[WhiteElo "2468"]
[BlackElo "2874"]
[Result "1/2-1/2"]
[Round "1"]
[TimeControl "180+1"]
[Date "2023.10.31"]
[WhiteClock "0:00:13"]
[BlackClock "0:00:11"]
[Board "34"]

1. b3 {[%clk 0:02:36]}  d5 {[%clk 0:02:59]} 2. Bb2 {[%clk 0:02:34]}  Bf5 {[%clk 0:02:59]} 3. e3 {[%clk 0:02:34]}  e6 {[%clk 0:02:58]} 4. Bd3 {[%clk 0:02:33]}  Bg6 {[%clk 0:02:48]} 5. Nf3 {[%clk 0:02:30]}  Nf6 {[%clk 0:02:47]} 6. Ne5 {[%clk 0:02:29]}  Nbd7 {[%clk 0:02:45]} 7. Nxg6 {[%clk 0:02:24]}  hxg6 {[%clk 0:02:46]} 8. f4 {[%clk 0:02:23]}  Bd6 {[%clk 0:02:43]} 9. Nc3 {[%clk 0:02:06]}  c6 {[%clk 0:02:42]} 10. Ne2 {[%clk 0:01:42]}  e5 {[%clk 0:02:41]} 11. fxe5 {[%clk 0:01:41]}  Nxe5 {[%clk 0:02:41]} 12. Nf4 {[%clk 0:01:34]}  Qe7 {[%clk 0:02:34]} 13. Qe2 {[%clk 0:01:27]}  a5 {[%clk 0:02:30]} 14. a4 {[%clk 0:01:25]}  g5 {[%clk 0:02:26]} 15. Nh3 {[%clk 0:01:19]}  g4 {[%clk 0:02:26]} 16. Nf2 {[%clk 0:01:17]}  Nxd3+ {[%clk 0:02:16]} 17. cxd3 {[%clk 0:01:14]}  Be5 {[%clk 0:02:08]} 18. Bxe5 {[%clk 0:01:11]}  Qxe5 {[%clk 0:02:09]} 19. d4 {[%clk 0:01:10]}  Qe6 {[%clk 0:02:05]} 20. O-O-O {[%clk 0:00:59]}  O-O-O {[%clk 0:01:36]} 21. h3 {[%clk 0:00:54]}  gxh3 {[%clk 0:01:33]} 22. Rxh3 {[%clk 0:00:53]}  Rxh3 {[%clk 0:01:29]} 23. Nxh3 {[%clk 0:00:53]}  Rh8 {[%clk 0:01:21]} 24. Rf1 {[%clk 0:00:45]}  Kb8 {[%clk 0:01:14]} 25. Kb2 {[%clk 0:00:43]}  Ka7 {[%clk 0:01:12]} 26. Nf4 {[%clk 0:00:42]}  Qe7 {[%clk 0:01:09]} 27. Nd3 {[%clk 0:00:41]}  Ne4 {[%clk 0:01:08]} 28. Rf3 {[%clk 0:00:34]}  Rh2 {[%clk 0:01:07]} 29. Rh3 {[%clk 0:00:25]}  Rxh3 {[%clk 0:01:04]} 30. gxh3 {[%clk 0:00:26]}  Qh4 {[%clk 0:00:57]} 31. Qg2 {[%clk 0:00:25]}  g6 {[%clk 0:00:53]} 32. Ne5 {[%clk 0:00:25]}  Qe1 {[%clk 0:00:47]} 33. Nf3 {[%clk 0:00:24]}  Qd1 {[%clk 0:00:47]} 34. h4 {[%clk 0:00:21]}  f6 {[%clk 0:00:46]} 35. Qh2 {[%clk 0:00:18]}  Qf1 {[%clk 0:00:31]} 36. Qc7 {[%clk 0:00:16]}  Ka6 {[%clk 0:00:28]} 37. Qc8 {[%clk 0:00:14]}  Ka7 {[%clk 0:00:18]} 38. Qd8 {[%clk 0:00:12]}  Qxf3 {[%clk 0:00:09]} 39. Qxa5+ {[%clk 0:00:12]}  Kb8 {[%clk 0:00:10]} 40. Qd8+ {[%clk 0:00:12]}  Ka7 {[%clk 0:00:10]} 41. Qa5+ {[%clk 0:00:12]}  Kb8 {[%clk 0:00:11]} 42. Qd8+ {[%clk 0:00:13]}  Ka7 {[%clk 0:00:11]} 43. Qa5+ {[%clk 0:00:13]} 1/2-1/2


[Site "https://www.chess.com"]

[Event "Titled Tuesday Blitz October 31 Late 2023"]
[White "Nazari, Arad"]
[Black "Buchenau, Frank"]
[WhiteFideId "12577324"]
[BlackFideId "4604350"]
[WhiteElo "2856"]
[BlackElo "2467"]
[Result "0-1"]
[Round "1"]
[TimeControl "180+1"]
[Date "2023.10.31"]
[WhiteClock "0:00:06"]
[BlackClock "0:00:05"]
[Board "37"]

1. e4 {[%clk 0:02:36]}  e6 {[%clk 0:02:59]} 2. d4 {[%clk 0:02:32]}  d5 {[%clk 0:02:59]} 3. Nd2 {[%clk 0:02:31]}  c5 {[%clk 0:02:58]} 4. Ngf3 {[%clk 0:02:31]}  cxd4 {[%clk 0:02:57]} 5. Nxd4 {[%clk 0:02:32]}  Nc6 {[%clk 0:02:57]} 6. Nxc6 {[%clk 0:02:30]}  bxc6 {[%clk 0:02:55]} 7. Bd3 {[%clk 0:02:30]}  Bd6 {[%clk 0:02:41]} 8. O-O {[%clk 0:02:30]}  Ne7 {[%clk 0:02:32]} 9. Qg4 {[%clk 0:02:29]}  O-O {[%clk 0:02:27]} 10. Qh5 {[%clk 0:02:08]}  Ng6 {[%clk 0:02:20]} 11. e5 {[%clk 0:02:01]}  Be7 {[%clk 0:01:54]} 12. Nf3 {[%clk 0:01:57]}  Qe8 {[%clk 0:01:25]} 13. Bg5 {[%clk 0:01:45]}  f6 {[%clk 0:01:05]} 14. exf6 {[%clk 0:01:32]}  Bxf6 {[%clk 0:01:04]} 15. Nh4 {[%clk 0:01:18]}  Bxg5 {[%clk 0:00:56]} 16. Nxg6 {[%clk 0:01:12]}  Bh6 {[%clk 0:00:36]} 17. Nf4 {[%clk 0:01:12]}  Qxh5 {[%clk 0:00:29]} 18. Nxh5 {[%clk 0:01:13]}  g6 {[%clk 0:00:25]} 19. Ng3 {[%clk 0:01:11]}  e5 {[%clk 0:00:25]} 20. f3 {[%clk 0:01:10]}  Rb8 {[%clk 0:00:24]} 21. b3 {[%clk 0:01:09]}  Be3+ {[%clk 0:00:23]} 22. Kh1 {[%clk 0:01:10]}  a5 {[%clk 0:00:21]} 23. Rad1 {[%clk 0:01:07]}  Be6 {[%clk 0:00:19]} 24. Rfe1 {[%clk 0:01:06]}  Bd4 {[%clk 0:00:17]} 25. Ne2 {[%clk 0:01:06]}  Bc5 {[%clk 0:00:14]} 26. c3 {[%clk 0:01:00]}  Bf7 {[%clk 0:00:14]} 27. Bc2 {[%clk 0:00:52]}  Rfe8 {[%clk 0:00:14]} 28. Nc1 {[%clk 0:00:53]}  Kg7 {[%clk 0:00:12]} 29. Nd3 {[%clk 0:00:53]}  Bd6 {[%clk 0:00:12]} 30. c4 {[%clk 0:00:52]}  dxc4 {[%clk 0:00:11]} 31. bxc4 {[%clk 0:00:46]}  Bxc4 {[%clk 0:00:11]} 32. Nf2 {[%clk 0:00:46]}  Bb4 {[%clk 0:00:09]} 33. Rd7+ {[%clk 0:00:44]}  Re7 {[%clk 0:00:06]} 34. Rxe7+ {[%clk 0:00:41]}  Bxe7 {[%clk 0:00:07]} 35. Rxe5 {[%clk 0:00:41]}  Bd8 {[%clk 0:00:06]} 36. a4 {[%clk 0:00:28]}  Rb2 {[%clk 0:00:05]} 37. Bd3 {[%clk 0:00:25]}  Rxf2 {[%clk 0:00:04]} 38. Bxc4 {[%clk 0:00:26]}  Rc2 {[%clk 0:00:05]} 39. Bf1 {[%clk 0:00:03]}  Rc1 {[%clk 0:00:05]} 40. g3 {[%clk 0:00:04]}  Rxf1+ {[%clk 0:00:04]} 41. Kg2 {[%clk 0:00:04]}  Rd1 {[%clk 0:00:04]} 42. Re6 {[%clk 0:00:05]}  Rd2+ {[%clk 0:00:04]} 43. Kf1 {[%clk 0:00:05]}  c5 {[%clk 0:00:05]} 44. Rc6 {[%clk 0:00:06]}  Be7 {[%clk 0:00:05]} 45. Rc7 {[%clk 0:00:07]}  Kf6 {[%clk 0:00:05]} 46. g4 {[%clk 0:00:07]}  Rd4 {[%clk 0:00:05]} 47. h4 {[%clk 0:00:07]}  Rxa4 {[%clk 0:00:04]} 48. Kg2 {[%clk 0:00:07]}  Ke6 {[%clk 0:00:05]} 49. Kg3 {[%clk 0:00:07]}  Rb4 {[%clk 0:00:04]} 50. f4 {[%clk 0:00:07]}  a4 {[%clk 0:00:05]} 51. Ra7 {[%clk 0:00:07]}  Rb3+ {[%clk 0:00:04]} 52. Kg2 {[%clk 0:00:07]}  a3 {[%clk 0:00:05]} 53. f5+ {[%clk 0:00:08]}  gxf5 {[%clk 0:00:05]} 54. Ra6+ {[%clk 0:00:09]}  Ke5 {[%clk 0:00:05]} 55. g5 {[%clk 0:00:09]}  Rb2+ {[%clk 0:00:04]} 56. Kf3 {[%clk 0:00:10]}  a2 {[%clk 0:00:05]} 57. Ra4 {[%clk 0:00:09]}  c4 {[%clk 0:00:05]} 58. Ke3 {[%clk 0:00:08]}  Rb3+ {[%clk 0:00:05]} 59. Kd2 {[%clk 0:00:06]}  Ra3 {[%clk 0:00:05]} 0-1


[Site "https://www.chess.com"]

[Event "Titled Tuesday Blitz October 31 Late 2023"]
[White "Mystery2007"]
[Black "Zakhartsov, Vladimir"]
[BlackFideId "4145097"]
[WhiteElo "2457"]
[BlackElo "2834"]
[Result "0-1"]
[Round "1"]
[TimeControl "180+1"]
[Date "2023.10.31"]
[WhiteClock "0:00:45"]
[BlackClock "0:01:29"]
[Board "42"]

1. b3 {[%clk 0:03:00]}  d5 {[%clk 0:02:58]} 2. Bb2 {[%clk 0:03:01]}  c5 {[%clk 0:02:58]} 3. e3 {[%clk 0:03:01]}  a6 {[%clk 0:02:56]} 4. c4 {[%clk 0:03:00]}  d4 {[%clk 0:02:54]} 5. Nf3 {[%clk 0:02:58]}  Nc6 {[%clk 0:02:54]} 6. exd4 {[%clk 0:02:53]}  cxd4 {[%clk 0:02:55]} 7. d3 {[%clk 0:02:53]}  e5 {[%clk 0:02:53]} 8. Nbd2 {[%clk 0:02:53]}  Nf6 {[%clk 0:02:30]} 9. g3 {[%clk 0:02:52]}  Bf5 {[%clk 0:02:30]} 10. a3 {[%clk 0:02:46]}  a5 {[%clk 0:02:29]} 11. Bg2 {[%clk 0:02:43]}  Bxd3 {[%clk 0:02:19]} 12. Ng5 {[%clk 0:02:35]}  Bg6 {[%clk 0:01:56]} 13. O-O {[%clk 0:02:29]}  Be7 {[%clk 0:01:55]} 14. h4 {[%clk 0:02:15]}  h6 {[%clk 0:01:49]} 15. Nge4 {[%clk 0:02:12]}  Nd7 {[%clk 0:01:47]} 16. h5 {[%clk 0:02:00]}  Bh7 {[%clk 0:01:47]} 17. Qg4 {[%clk 0:02:01]}  O-O {[%clk 0:01:45]} 18. Bh3 {[%clk 0:01:25]}  f5 {[%clk 0:01:41]} 19. Qe2 {[%clk 0:01:25]}  fxe4 {[%clk 0:01:40]} 20. Nxe4 {[%clk 0:01:26]}  Nf6 {[%clk 0:01:37]} 21. Nxf6+ {[%clk 0:01:08]}  Bxf6 {[%clk 0:01:38]} 22. Rad1 {[%clk 0:01:09]}  Kh8 {[%clk 0:01:36]} 23. f4 {[%clk 0:01:02]}  e4 {[%clk 0:01:32]} 24. Be6 {[%clk 0:00:51]}  d3 {[%clk 0:01:31]} 25. Qg2 {[%clk 0:00:50]}  Bxb2 {[%clk 0:01:30]} 26. Qxb2 {[%clk 0:00:51]}  Qd4+ {[%clk 0:01:30]} 27. Qxd4 {[%clk 0:00:52]}  Nxd4 {[%clk 0:01:31]} 28. Bd5 {[%clk 0:00:52]}  e3 {[%clk 0:01:31]} 29. Rfe1 {[%clk 0:00:49]}  e2 {[%clk 0:01:30]} 30. Rd2 {[%clk 0:00:49]}  Nxb3 {[%clk 0:01:28]} 31. Rb2 {[%clk 0:00:45]}  d2 {[%clk 0:01:29]} 0-1


[Site "https://www.chess.com"]